bitfinex-derivatives/quotes_BNBF0:USTF0_20250128
["timestamp","ask_amount","ask_price","bid_price","bid_amount"]
[1738078582669,0.27202683,676.05,674.74,1.06548312]
[1738078582869,0.27202683,676.04,674.75,1.06548312]
[1738078583066,0.27202683,676.07,674.75,1.06548312]
[1738078583372,0.27202683,676.06,674.76,1.06548312]
[1738078583567,0.27202683,676.07,674.76,1.06548312]
[1738078583867,0.27202683,676.06,674.77,1.06548312]
[1738078584065,1.10494083,676.08,674.77,1.06548312]
[1738078584272,0.27204672,676.07,674.87,1.09674227]
[1738078584467,0.27204672,676.06,674.87,1.09674227]
[1738078584666,0.27204672,676.05,674.88,1.06548312]
[1738078584866,0.27204672,676.04,674.88,1.06548312]
[1738078585065,0.2958186,676.09,674.88,1.06548312]
[1738078585270,0.27208651,676.08,674.89,1.06548312]
[1738078585973,0.27208526,676.07,674.9,1.06548312]
[1738078586172,0.27208526,676.08,674.9,1.06548312]
[1738078586471,0.27208526,676.07,674.9,1.06548312]
[1738078586671,0.27208526,676.08,674.9,1.06548312]
[1738078586872,0.29583173,676.06,674.9,1.06548312]
[1738078587073,0.27208526,676.05,674.91,1.06548312]
[1738078587272,0.29584485,676.03,674.91,1.06548312]
[1738078587469,0.27208526,676.02,674.91,1.06548312]
[1738078587673,0.29585798,676.0,674.92,1.06548312]
[1738078587873,0.27208526,675.99,674.92,1.06548312]
[1738078588073,0.29587111,675.97,674.92,1.06548312]
[1738078588274,0.27208526,675.96,674.92,1.06548312]
[1738078588469,0.27208526,675.96,674.93,1.06548312]
[1738078589176,0.27208526,675.95,674.93,1.06548312]
[1738078589370,0.27208526,675.95,674.94,1.06548312]
[1738078589578,0.27208526,675.94,674.94,1.06548312]
[1738078589775,0.27208526,675.93,674.94,1.06548312]
[1738078589977,0.27208526,675.92,674.95,1.06548312]
[1738078590176,0.27208526,675.91,674.96,1.06548312]
[1738078590375,0.27208526,675.96,674.96,1.06548312]
[1738078590571,0.27208526,675.95,674.96,1.06548312]
[1738078590771,0.27208526,675.94,674.96,1.06548312]
[1738078590969,0.27208526,675.93,674.97,1.06548312]
[1738078591170,0.27208526,675.92,674.97,1.06548312]
[1738078591374,0.27208526,675.91,674.98,1.06548312]
[1738078591570,0.27208526,675.9,674.98,1.06548312]
[1738078591769,0.27208526,675.9,674.99,1.06548312]
[1738078592473,0.27208526,675.9,675.0,1.06548312]
[1738078592672,1.54596239,675.91,675.0,1.06548312]
[1738078592873,1.10494083,675.85,675.0,1.06548312]
[1738078593075,0.27214577,675.84,675.01,1.06548312]
[1738078593576,0.27213604,675.83,675.01,1.06548312]
[1738078593776,1.10494083,675.85,674.57,0.29648516]
[1738078593777,0.27213604,675.84,675.02,1.06548312]
[1738078593979,0.27213604,675.83,675.02,1.06548312]
[1738078594276,0.27213604,675.82,675.03,1.06548312]
[1738078594477,0.27214422,675.81,675.03,1.06548312]
[1738078594677,0.27214422,675.8,675.03,1.06548312]
[1738078594874,0.27214422,675.8,674.44,1.09674227]
[1738078594875,0.27214422,675.84,675.04,1.06548312]
[1738078595074,0.56807662,675.83,675.04,1.06548312]
[1738078595272,0.27214422,675.82,675.04,1.06548312]
[1738078595575,0.27214422,675.82,675.05,1.06548312]
[1738078595971,0.29594116,675.81,675.05,1.06548312]
[1738078596178,0.29594116,675.81,675.06,1.06548312]
[1738078596378,0.27214422,675.8,675.06,1.06548312]
[1738078596571,0.29594992,675.79,675.07,1.06548312]
[1738078596773,0.27214422,675.78,675.07,1.06548312]
[1738078596977,0.29595868,675.77,675.08,1.06548312]
[1738078597177,0.27214422,675.76,675.08,1.06548312]
[1738078597377,0.27214422,675.76,675.09,1.06548312]
[1738078597679,0.29596744,675.75,675.09,1.06548312]
[1738078597870,0.29596744,675.75,674.31,1.09674227]
[1738078597871,0.27214422,675.74,675.1,1.06548312]
[1738078598075,0.2959762,675.73,675.1,1.06548312]
[1738078598276,0.27214422,675.72,675.1,1.06548312]
[1738078598577,0.27214422,675.72,673.62,1.91654142]
[1738078598578,0.29598496,675.71,675.11,1.06548312]
[1738078598778,0.27214422,675.7,675.11,1.06548312]
[1738078598973,0.29599372,675.69,675.11,1.06548312]
[1738078599178,0.29599372,675.69,674.29,1.09674227]
[1738078599179,0.29599372,675.69,675.12,1.06548312]
[1738078600081,0.29599372,675.69,675.13,1.06548312]
[1738078600778,0.29599372,675.69,675.14,1.06548312]
[1738078600977,0.29599372,675.69,675.15,1.06548312]
[1738078601679,0.29599372,675.69,675.16,1.06548312]
[1738078602480,0.272147,675.68,675.17,1.06548312]
[1738078602673,0.29600248,675.67,675.17,1.06548312]
[1738078602873,0.2721511,675.66,675.17,1.06548312]
[1738078603082,0.29601124,675.65,675.17,1.06548312]
[1738078603387,0.2721511,675.64,675.18,1.06548312]
[1738078604385,0.2721511,675.64,675.19,1.06548312]
[1738078604691,0.2721511,675.64,675.2,1.06548312]
[1738078605093,0.2721511,675.64,675.21,1.06548312]
[1738078605687,0.2721511,675.64,674.37,1.09674227]
[1738078606391,0.2721511,675.64,674.38,1.06824251]
[1738078606590,0.2721511,675.64,674.39,1.06824251]
[1738078607291,0.29601124,675.65,674.4,1.06824251]
[1738078607693,0.29601124,675.65,674.41,1.06824251]
[1738078607895,0.29601124,675.65,674.43,1.09674227]
[1738078608293,0.29601124,675.65,674.44,1.06824251]
[1738078608889,0.29601124,675.65,674.45,1.06824251]
[1738078609597,0.29601124,675.65,674.46,1.06824251]
[1738078610188,0.29601124,675.65,674.47,1.06824251]
[1738078610592,0.29601124,675.65,674.48,1.06824251]
[1738078610795,0.29601124,675.65,674.06,0.7072086]
[1738078610796,0.29601124,675.65,674.61,1.09674227]
[1738078611493,0.29601124,675.65,674.62,1.06824251]
[1738078612093,0.29601124,675.65,674.63,1.06824251]
[1738078612696,0.29601124,675.65,674.64,1.06824251]
[1738078613091,0.29601124,675.65,674.65,1.06824251]
[1738078613397,0.29601124,675.65,674.66,1.06824251]
[1738078614299,0.29601124,675.65,674.67,1.06824251]
[1738078614697,0.29601124,675.65,674.68,1.06824251]
[1738078615100,0.29601124,675.65,674.61,1.09674227]
[1738078615101,0.29601124,675.65,674.69,1.06824251]
[1738078615493,0.29601124,675.65,674.61,1.09674227]
[1738078615494,0.29601124,675.65,674.7,1.06824251]
[1738078616197,0.29601124,675.65,674.71,1.06824251]
[1738078616799,0.29601124,675.65,674.72,1.06824251]
[1738078617401,0.29601124,675.65,674.73,1.06824251]
[1738078617803,0.29601124,675.65,674.74,1.06824251]
[1738078618596,0.29601124,675.65,674.75,1.06824251]
[1738078619201,0.29601124,675.65,674.76,1.06824251]
[1738078619603,0.29601124,675.65,674.77,1.06824251]
[1738078620102,1.10494083,676.03,674.77,1.06824251]
[1738078620298,0.56788727,676.02,674.77,1.06824251]
[1738078620504,0.27203804,676.01,674.78,1.06824251]
[1738078621001,0.29584923,676.02,674.79,1.06824251]
[1738078621206,0.27206074,676.01,674.79,1.06824251]
[1738078621507,0.29584923,676.02,674.8,1.06824251]
[1738078621508,0.27208448,676.0,674.8,1.06824251]
[1738078621707,0.27208824,675.99,674.8,1.06824251]
[1738078621904,0.27208824,676.01,674.8,1.06824251]
[1738078622104,0.27208824,676.0,674.81,1.06824251]
[1738078622302,0.27208824,675.99,674.81,1.06824251]
[1738078622501,0.27208824,676.01,674.81,1.06824251]
[1738078622706,0.27208824,676.01,674.59,1.09674227]
[1738078622707,0.27207847,676.0,674.82,1.06824251]
[1738078622904,0.29586236,675.99,674.83,1.06824251]
[1738078623506,0.27205823,675.98,674.83,1.06824251]
[1738078623705,0.27205823,675.98,674.84,1.06824251]
[1738078624301,0.29586236,675.99,674.84,1.06824251]
[1738078624507,0.272049,675.98,674.85,1.06824251]
[1738078624705,0.29587111,675.97,674.85,1.06824251]
[1738078625006,0.272049,675.96,674.86,1.06824251]
[1738078625210,0.29587987,675.95,674.86,1.06824251]
[1738078625506,0.272049,675.94,674.87,1.06824251]
[1738078625706,0.29588862,675.93,674.87,1.06824251]
[1738078625907,0.29588862,675.93,674.46,1.09674227]
[1738078625908,0.272049,675.92,674.88,1.06824251]
[1738078626107,0.29589738,675.91,674.88,1.06824251]
[1738078626307,0.29589738,675.91,673.76,1.9192721]
[1738078626308,0.272049,675.9,674.89,1.06824251]
[1738078626507,0.29590613,675.89,674.89,1.06824251]
[1738078626706,0.272049,675.88,674.9,1.06824251]
[1738078626901,0.29591489,675.87,674.9,1.06824251]
[1738078627110,0.272049,675.86,674.9,1.06824251]
[1738078627306,0.29592365,675.85,674.91,1.06824251]
[1738078627508,0.272049,675.84,674.91,1.06824251]
[1738078627707,0.2959324,675.83,674.91,1.06824251]
[1738078627907,0.27208628,675.82,674.91,1.06824251]
[1738078628109,0.27208628,675.82,674.92,1.06824251]
[1738078628510,0.27208686,675.81,674.92,1.06824251]
[1738078628705,0.27208686,675.82,674.93,1.06824251]
[1738078628909,0.27208686,675.81,674.94,1.06824251]
[1738078629110,0.2959324,675.83,674.94,1.06824251]
[1738078629111,0.27208686,675.82,674.94,1.06824251]
[1738078629312,0.56802802,675.81,674.94,1.06824251]
[1738078629504,0.27208686,675.8,674.94,1.06824251]
[1738078629705,0.27208686,675.8,674.95,1.06824251]
[1738078630105,0.29594116,675.81,674.96,1.06824251]
[1738078630507,0.29594116,675.81,674.97,1.06824251]
[1738078631304,0.29594116,675.81,674.98,1.06824251]
[1738078631613,0.27208345,675.8,674.98,1.06824251]
[1738078631810,0.27208345,675.8,674.99,1.06824251]
[1738078632711,0.27208345,675.8,675.0,1.06824251]
[1738078632909,0.27209141,675.79,675.0,1.06824251]
[1738078633108,0.27209141,675.8,675.0,1.06824251]
[1738078633313,0.29594116,675.81,674.45,1.09674227]
[1738078633314,0.27209141,675.79,675.01,1.06824251]
[1738078633610,0.27209141,675.78,675.01,1.06824251]
[1738078633811,0.29595868,675.77,675.02,1.06824251]
[1738078634112,0.27209141,675.76,675.02,1.06824251]
[1738078634307,0.29596744,675.75,675.03,1.06824251]
[1738078634514,0.27209141,675.74,675.03,1.06824251]
[1738078634812,0.56806323,675.74,675.04,1.06824251]
[1738078635004,0.27209141,675.73,675.04,1.06824251]
[1738078635206,0.27209141,675.73,675.05,1.06824251]
[1738078635507,0.27209141,675.73,675.06,1.06824251]
[1738078635905,0.29597182,675.74,675.06,1.06824251]
[1738078636109,0.29597182,675.74,675.07,1.06824251]
[1738078636510,0.29597182,675.74,675.08,1.06824251]
[1738078636807,0.27210114,675.73,675.08,1.06824251]
[1738078637312,0.27210114,675.73,675.09,1.06824251]
[1738078637711,0.29597182,675.74,675.1,1.06824251]
[1738078638108,0.29597182,675.74,675.11,1.06824251]
[1738078638816,0.29597182,675.74,675.12,1.06824251]
[1738078639011,0.29597182,675.74,675.13,1.06824251]
[1738078639913,0.29597182,675.74,675.14,1.06824251]
[1738078640420,0.29597182,675.74,675.15,1.06824251]
[1738078641120,0.29597182,675.74,675.16,1.06824251]
[1738078642317,0.27217017,675.73,675.17,1.06824251]
[1738078642725,0.27217017,675.73,675.18,1.06824251]
[1738078642921,0.29598058,675.72,675.18,1.06824251]
[1738078643120,0.29598058,675.72,675.19,1.06824251]
[1738078643121,0.27216275,675.71,675.19,1.06824251]
[1738078643323,0.29598934,675.7,675.19,1.06824251]
[1738078643520,0.27216275,675.69,675.19,1.06824251]
[1738078643724,0.2959981,675.68,675.19,1.06824251]
[1738078643925,0.2959981,675.68,671.32,1.92471141]
[1738078643926,0.27216275,675.67,675.2,1.06824251]
[1738078644122,0.29600686,675.66,675.2,1.06824251]
[1738078644421,0.29600686,675.66,671.33,1.92471141]
[1738078644627,0.29600686,675.66,671.54,0.29782291]
[1738078646526,0.29600686,675.66,674.49,1.09611049]
[1738078649930,0.29600686,675.66,674.28,1.09611049]
[1738078649931,0.29600686,675.66,674.0,1.09611049]
[1738078650823,0.29600686,675.66,674.01,0.2967315]
[1738078653228,0.29600686,675.66,674.01,1.39284199]
[1738078655725,0.29600686,675.66,674.35,1.09611049]
[1738078657031,0.29600686,675.66,674.36,1.0557447]
[1738078657434,0.29600686,675.66,674.37,1.0557447]
[1738078658033,0.29600686,675.66,674.38,1.0557447]
[1738078658635,0.29600686,675.66,674.39,1.0557447]
[1738078659437,0.29600686,675.66,674.4,1.0557447]
[1738078660135,0.29600686,675.66,674.41,1.0557447]
[1738078660635,0.29600686,675.66,674.42,1.0557447]
[1738078661035,0.29600686,675.66,674.43,1.0557447]
[1738078661735,0.29600686,675.66,674.44,1.0557447]
[1738078662332,0.29600686,675.66,674.45,1.0557447]
[1738078662532,0.29600686,675.66,674.55,1.09611049]
[1738078663035,0.29600686,675.66,674.56,1.0557447]
[1738078663933,0.29600686,675.66,674.57,1.0557447]
[1738078664137,1.10660351,676.13,674.57,1.0557447]
[1738078664438,0.56780455,676.12,674.58,1.0557447]
[1738078664732,0.29580547,676.12,674.58,1.0557447]
[1738078665333,0.29580547,676.12,674.59,1.0557447]
[1738078666132,0.29580547,676.12,674.6,1.0557447]
[1738078666536,0.29580547,676.12,674.61,1.0557447]
[1738078666838,0.29580547,676.12,674.62,1.0557447]
[1738078667035,0.27197906,676.11,674.62,1.0557447]
[1738078667536,0.27197906,676.11,674.63,1.0557447]
[1738078667735,0.27197906,676.11,674.56,1.09611049]
[1738078668632,0.29580547,676.12,674.56,1.09611049]
[1738078669433,0.29580547,676.12,674.71,1.09611049]
[1738078670040,0.29580547,676.12,674.72,1.05136636]
[1738078670432,0.29580547,676.12,674.71,1.09611049]
[1738078670433,0.29580547,676.12,674.73,1.05136636]
[1738078671239,0.29580547,676.12,674.74,1.05136636]
[1738078671841,0.29580547,676.12,674.75,1.05136636]
[1738078672643,0.29580547,676.12,674.76,1.05136636]
[1738078672945,0.27199109,676.11,674.76,1.05136636]
[1738078673444,0.27199109,676.11,674.77,1.05136636]
[1738078673643,0.27199109,676.11,674.78,1.05136636]
[1738078673845,0.29580547,676.12,674.78,1.05136636]
[1738078674047,0.27199696,676.11,674.79,1.05136636]
[1738078674746,0.29580547,676.12,674.8,1.05136636]
[1738078675346,0.29580547,676.12,674.81,1.05136636]
[1738078675745,0.29580547,676.12,674.82,1.05136636]
[1738078676145,0.29580547,676.12,674.83,1.05136636]
[1738078676646,0.29580547,676.12,674.84,1.05136636]
[1738078677349,0.29580547,676.12,674.85,1.05136636]
[1738078677942,0.29580547,676.12,674.86,1.05136636]
[1738078678148,0.27201951,676.11,674.86,1.05136636]
[1738078678342,0.27201951,676.11,674.87,1.05136636]
[1738078678547,0.29580547,676.12,674.87,1.05136636]
[1738078678743,0.27201675,676.11,674.87,1.05136636]
[1738078679347,0.29581422,676.1,674.88,1.05136636]
[1738078679547,0.29581422,676.1,674.89,1.05136636]
[1738078679743,0.27204036,676.09,674.89,1.05136636]
[1738078680050,0.27204036,676.09,674.9,1.05136636]
[1738078680448,0.27204036,676.09,674.91,1.05136636]
[1738078680845,0.2720571,676.08,674.91,1.05136636]
[1738078681152,0.2720571,676.07,674.92,1.05136636]
[1738078681351,0.2720571,676.09,674.92,1.05136636]
[1738078681548,0.2720571,676.08,674.92,1.05136636]
[1738078681747,0.2720571,676.09,674.93,1.05136636]
[1738078681951,0.2720571,676.08,674.93,1.05136636]
[1738078682152,0.2720571,676.09,674.93,1.05136636]
[1738078682650,0.2720571,676.09,674.94,1.05136636]
[1738078683347,0.2720571,676.08,674.95,1.05136636]
[1738078683544,0.2720571,676.09,674.95,1.05136636]
[1738078683745,0.2720571,676.08,674.95,1.05136636]
[1738078684049,0.27211182,676.07,674.96,1.05136636]
[1738078684353,0.29581422,676.1,674.96,1.05136636]
[1738078684354,0.27211182,676.06,674.96,1.05136636]
[1738078684544,0.27211182,676.06,674.32,1.09611049]
[1738078684545,0.27211182,676.05,674.97,1.05136636]
[1738078684749,0.27211182,676.04,674.97,1.05136636]
[1738078684949,0.27211182,676.03,674.97,1.05136636]
[1738078685252,0.29581422,676.1,674.32,1.09611049]
[1738078685253,0.27211182,676.02,674.98,1.05136636]
[1738078685550,0.29581422,676.1,674.98,1.05136636]
[1738078685752,0.27211,676.09,674.98,1.05136636]
[1738078685945,0.27211,676.08,674.99,1.05136636]
[1738078686149,0.27211,676.07,674.99,1.05136636]
[1738078686346,0.27211,676.06,675.0,1.05136636]
[1738078686551,0.27211,676.05,675.0,1.05136636]
[1738078686753,0.27211,676.04,675.0,1.05136636]
[1738078686953,0.27211,676.03,675.0,1.05136636]
[1738078687149,0.27211,676.09,675.01,1.05136636]
[1738078687455,0.27211,676.08,675.01,1.05136636]
[1738078687652,0.27211,676.07,675.02,1.05136636]
[1738078687851,0.27211,676.06,675.02,1.05136636]
[1738078688051,0.27211,676.05,675.02,1.05136636]
[1738078688255,0.27211,676.09,675.02,1.05136636]
[1738078688553,0.29581422,676.1,675.03,1.05136636]
[1738078688755,0.27212815,676.09,675.03,1.05136636]
[1738078688956,0.27212815,676.08,675.04,1.05136636]
[1738078689147,0.27212815,676.07,675.04,1.05136636]
[1738078689351,0.27212815,676.06,675.04,1.05136636]
[1738078689551,0.27212815,676.05,675.04,1.05136636]
[1738078689751,0.27212815,676.04,675.05,1.05136636]
[1738078689948,0.27212815,676.03,675.05,1.05136636]
[1738078690154,0.27212815,676.02,675.05,1.05136636]
[1738078690354,0.27212815,676.01,675.06,1.05136636]
[1738078690556,0.27212815,676.02,675.06,1.05136636]
[1738078690754,1.54585938,676.03,675.07,1.05136636]
[1738078690951,0.27216491,676.02,675.07,1.05136636]
[1738078691156,0.27216491,676.01,675.07,1.05136636]
[1738078691456,0.27216491,676.02,675.07,1.05136636]
[1738078691656,0.27216491,676.01,675.07,1.05136636]
[1738078691857,0.27216491,676.02,674.33,1.05136636]
[1738078692155,0.27216491,676.01,674.34,1.05136636]
[1738078692355,0.27216491,676.02,674.34,1.05136636]
[1738078692557,0.2721629,676.01,674.35,1.05136636]
[1738078692759,0.2721629,676.0,674.35,1.05136636]
[1738078693061,0.2721629,676.02,674.36,1.05136636]
[1738078693359,0.2721629,676.01,674.36,1.05136636]
[1738078693658,0.2721629,676.0,674.36,1.05136636]
[1738078693859,0.2721629,676.02,674.37,1.05136636]
[1738078694054,0.2721629,676.01,674.37,1.05136636]
[1738078694256,1.54585938,676.03,674.37,1.05136636]
[1738078694458,0.27215187,676.02,674.38,1.05136636]
[1738078695159,0.27215187,676.02,674.39,1.05136636]
[1738078695359,0.29585798,676.0,674.39,1.05136636]
[1738078695559,0.27215187,675.99,674.39,1.05136636]
[1738078695761,0.27215187,675.99,674.4,1.05136636]
[1738078695960,0.27215187,675.99,674.41,1.05136636]
[1738078696563,0.27215187,675.99,674.42,1.05136636]
[1738078697063,0.27215187,675.99,674.43,1.05136636]
[1738078697461,0.27215187,675.99,674.44,1.05136636]
[1738078697961,0.27215187,675.99,674.45,1.05136636]
[1738078698658,0.27215187,675.98,674.46,1.05136636]
[1738078698865,0.27215187,675.97,674.46,1.05136636]
[1738078699064,0.27215187,675.96,674.47,1.05136636]
[1738078699364,0.27215187,675.95,674.47,1.05136636]
[1738078699556,0.27215187,675.94,674.48,1.05136636]
[1738078699760,0.27215187,675.93,674.48,1.05136636]
[1738078699957,0.29589738,675.91,674.49,1.05136636]
[1738078700262,0.27215187,675.9,674.5,1.05136636]
[1738078700763,1.81841765,675.9,674.5,1.05136636]
[1738078700964,0.29591051,675.88,674.5,1.05136636]
[1738078701165,0.27215187,675.87,674.51,1.05136636]
[1738078701463,0.29592365,675.85,674.52,1.05136636]
[1738078701661,0.27215187,675.84,674.52,1.05136636]
[1738078702262,0.2959324,675.83,674.52,1.05136636]
[1738078702462,0.2959324,675.83,674.53,1.05136636]
[1738078702661,0.2959324,675.83,674.54,1.05136636]
[1738078702963,0.27214051,675.82,674.54,1.05136636]
[1738078703163,0.29594116,675.81,674.55,1.05136636]
[1738078703565,0.56807516,675.81,674.56,1.05136636]
[1738078703866,0.272134,675.8,674.56,1.05136636]
[1738078704363,0.29594992,675.79,674.56,1.05136636]
[1738078704564,0.272134,675.78,674.56,1.05136636]
[1738078704757,0.29595868,675.77,674.56,1.05136636]
[1738078704958,0.272134,675.76,674.56,1.05136636]
[1738078705257,0.29596744,675.75,674.57,1.05136636]
[1738078705564,0.272134,675.74,674.57,1.05136636]
[1738078705763,0.2959762,675.73,674.57,1.05136636]
[1738078706065,0.2959762,675.73,674.07,1.09142282]
[1738078706066,0.2959762,675.73,674.58,1.05136636]
[1738078706457,0.2959762,675.73,674.59,1.05136636]
[1738078707061,0.2959762,675.73,674.6,1.05136636]
[1738078707463,0.2959762,675.73,674.61,1.05136636]
[1738078707759,0.2959762,675.73,674.13,1.09142282]
[1738078707760,0.2959762,675.73,674.62,1.05136636]
[1738078707964,0.27213787,675.72,674.62,1.05136636]
[1738078708164,0.29598496,675.71,674.62,1.05136636]
[1738078708364,0.27213475,675.7,674.63,1.05136636]
[1738078709063,0.27213475,675.7,674.64,1.05136636]
[1738078709565,0.27213475,675.7,674.65,1.05136636]
[1738078709964,0.27213475,675.7,674.66,1.05136636]
[1738078710467,0.27213475,675.7,674.67,1.05136636]
[1738078710864,0.27213475,675.7,674.68,1.05136636]
[1738078711766,0.27213475,675.7,674.69,1.05136636]
[1738078712267,0.27213475,675.7,674.7,1.05136636]
[1738078712963,0.27213475,675.7,674.71,1.05136636]
[1738078713163,0.29598496,675.71,674.71,1.05136636]
[1738078713567,0.29598496,675.71,674.72,1.05136636]
[1738078713972,0.29598496,675.71,674.73,1.05136636]
[1738078714372,0.29598496,675.71,674.74,1.05136636]
[1738078714868,0.29598496,675.71,674.75,1.05136636]
[1738078715571,0.29598496,675.71,674.76,1.05136636]
[1738078715767,0.27211275,675.7,674.76,1.05136636]
[1738078715968,0.29598496,675.71,674.77,1.05136636]
[1738078716166,0.27211901,675.7,674.77,1.05136636]
[1738078716971,0.27212421,675.69,674.78,1.05136636]
[1738078717171,0.27212421,675.7,674.78,1.05136636]
[1738078717373,0.27212421,675.69,674.78,1.05136636]
[1738078717573,0.27212421,675.7,674.78,1.05136636]
[1738078717773,0.27212421,675.69,674.79,1.05136636]
[1738078717974,0.29598496,675.71,674.79,1.05136636]
[1738078717975,0.27212421,675.7,674.79,1.05136636]
[1738078718274,0.27212421,675.7,674.8,1.05136636]
[1738078718574,0.29598496,675.71,674.8,1.05136636]
[1738078718969,0.29598496,675.71,674.81,1.05136636]
[1738078719374,0.29598496,675.71,674.82,1.05136636]
[1738078719874,0.29598496,675.71,674.83,1.05136636]
[1738078720374,0.29598496,675.71,674.84,1.05136636]
[1738078720775,0.29598496,675.71,674.85,1.05136636]
[1738078721574,0.29598496,675.71,674.86,1.05136636]
[1738078722775,0.29598496,675.71,674.87,1.05136636]
[1738078723175,0.29598496,675.71,674.88,1.05136636]
[1738078724075,0.29598496,675.71,674.89,1.05136636]
[1738078724470,0.29598496,675.71,674.9,1.05136636]
[1738078724969,0.29598496,675.71,674.91,1.05136636]
[1738078726075,0.29598496,675.71,674.92,1.05136636]
[1738078726476,0.29598496,675.71,674.93,1.05136636]
[1738078726977,0.29598496,675.71,674.94,1.05136636]
[1738078727469,0.29598496,675.71,674.95,1.05136636]
[1738078728069,0.29598496,675.71,674.96,1.05136636]
[1738078728873,0.29598496,675.71,674.97,1.05136636]
[1738078729073,0.29598496,675.71,674.98,1.05136636]
[1738078729475,0.29598496,675.71,674.99,1.05136636]
[1738078729979,0.29598496,675.71,675.0,1.05136636]
[1738078730277,0.29598496,675.71,675.01,1.05136636]
[1738078730780,0.29598496,675.71,675.02,1.05136636]
[1738078730979,0.27210861,675.7,675.02,1.05136636]
[1738078731480,0.29598496,675.71,675.03,1.05136636]
[1738078732279,0.29598496,675.71,675.04,1.05136636]
[1738078733076,0.29598496,675.71,675.05,1.05136636]
[1738078733380,0.27215816,675.7,675.05,1.05136636]
[1738078733581,0.27215816,675.7,675.06,1.05136636]
[1738078734280,0.27215816,675.7,675.07,1.05136636]
[1738078734678,0.27215816,675.7,675.08,1.05136636]
[1738078735376,0.27215816,675.7,675.09,1.05136636]
[1738078736283,0.27215816,675.7,675.1,1.05136636]
[1738078736478,0.27215816,675.7,675.11,1.05136636]
[1738078737185,0.27215816,675.7,675.12,1.05136636]
[1738078737686,0.27215816,675.7,675.13,1.05136636]
[1738078738180,0.27215816,675.7,675.14,1.05136636]
[1738078738385,0.29599372,675.69,675.14,1.05136636]
[1738078738583,0.27215816,675.68,675.15,1.05136636]
[1738078739085,0.29600248,675.67,675.15,1.05136636]
[1738078739284,0.27215816,675.66,675.16,1.05136636]
[1738078739882,0.29601124,675.65,675.17,1.05136636]
[1738078740184,0.27215816,675.64,675.17,1.05136636]
[1738078740784,0.29601124,675.65,675.18,1.05136636]
[1738078740984,0.27216388,675.64,675.18,1.05136636]
[1738078741178,0.27216388,675.64,675.19,1.05136636]
[1738078741583,0.27216388,675.64,675.2,1.05136636]
[1738078742287,0.27213105,675.63,675.21,1.05136636]
[1738078742586,0.27213105,675.62,675.22,1.05136636]
[1738078742787,0.29601124,675.65,675.22,1.05136636]
[1738078743088,0.27211211,675.64,675.22,1.05136636]
[1738078743283,0.27211211,675.64,675.23,1.05136636]
[1738078743687,0.27211211,675.64,675.24,1.05136636]
[1738078744289,0.27211211,675.64,675.25,1.05136636]
[1738078744688,0.27211211,675.64,675.26,1.05136636]
[1738078745088,0.29601124,675.65,675.26,1.05136636]
[1738078745687,0.29601124,675.65,675.27,1.05136636]
[1738078746289,0.29601124,675.65,675.28,1.05136636]
[1738078747092,0.29601124,675.65,675.29,1.05136636]
[1738078747592,0.29601124,675.65,675.3,1.05136636]
[1738078748086,0.29601124,675.65,675.31,1.05136636]
[1738078748488,0.29601124,675.65,675.32,1.05136636]
[1738078748994,0.29601124,675.65,674.52,1.09142282]
[1738078749189,0.29601124,675.65,675.33,1.05598915]
[1738078749496,0.29601124,675.65,674.52,1.09142282]
[1738078749997,0.29601124,675.65,674.53,1.05611186]
[1738078750192,0.27215597,675.64,674.53,1.05611186]
[1738078750695,0.27215597,675.64,674.54,1.05611186]
[1738078750994,0.27215597,675.64,674.55,1.05611186]
[1738078751397,0.27215597,675.64,674.56,1.05611186]
[1738078751998,0.27215597,675.64,674.57,1.05611186]
[1738078752695,0.27215597,675.64,674.58,1.05611186]
[1738078753200,0.27215597,675.64,674.41,1.09142282]
[1738078753201,0.27215597,675.64,674.59,1.05611186]
[1738078753700,0.29602001,675.63,674.59,1.05611186]
[1738078753898,0.27215597,675.62,674.59,1.05611186]
[1738078754200,0.29602877,675.61,674.6,1.05611186]
[1738078754502,0.27215597,675.6,674.6,1.05611186]
[1738078754699,0.29603753,675.59,674.6,1.05611186]
[1738078754899,0.27215597,675.58,674.6,1.05611186]
[1738078755099,0.27215597,675.58,674.61,1.05611186]
[1738078755299,0.2960463,675.57,674.61,1.05611186]
[1738078755498,0.27215597,675.56,674.61,1.05611186]
[1738078755699,0.29605506,675.55,674.61,1.05611186]
[1738078755902,0.29605506,675.55,674.62,1.05611186]
[1738078756601,0.29605506,675.55,674.63,1.05611186]
[1738078757503,0.29605506,675.55,674.64,1.05611186]
[1738078757904,0.29605506,675.55,674.65,1.05611186]
[1738078758603,0.29605506,675.55,674.66,1.05611186]
[1738078759104,0.29605506,675.55,674.67,1.05611186]
[1738078759705,0.29605506,675.55,674.68,1.05611186]
[1738078760205,0.29605506,675.55,674.69,1.05611186]
[1738078760602,0.29605506,675.55,674.7,1.05611186]
[1738078761306,0.29605506,675.55,674.71,1.05611186]
[1738078761705,0.29605506,675.55,674.72,1.05611186]
[1738078762308,0.29605506,675.55,674.73,1.05611186]
[1738078762807,0.29605506,675.55,674.74,1.05611186]
[1738078763404,0.29605506,675.55,674.75,1.05611186]
[1738078763809,0.29605506,675.55,674.76,1.05611186]
[1738078764508,0.29605506,675.55,674.77,1.05611186]
[1738078766701,0.29605506,675.55,674.78,1.05611186]